bitfinex-derivatives/quotes_BTCF0:USTF0_20250921
["timestamp","ask_amount","ask_price","bid_price","bid_amount"]
[1758441647698,5.62613355,115900.0,115890.0,0.0365]
[1758441648102,5.62596355,115900.0,115890.0,0.0365]
[1758441648498,5.62561355,115900.0,115890.0,0.0365]
[1758441648901,5.62447355,115900.0,115890.0,0.0365]
[1758441649206,5.62391355,115900.0,115890.0,0.0365]
[1758441649695,5.61621355,115900.0,115890.0,0.0365]
[1758441650301,5.61611355,115900.0,115890.0,0.0365]
[1758441650900,5.61595355,115900.0,115890.0,0.0365]
[1758441651105,5.61495355,115900.0,115890.0,0.0365]
[1758441651502,5.61453355,115900.0,115890.0,0.0365]
[1758441651803,4.83324355,115900.0,115890.0,0.0365]
[1758441652002,5.61216355,115900.0,115890.0,0.0365]
[1758441652202,4.81222355,115900.0,115890.0,0.0365]
[1758441652402,5.59114355,115900.0,115890.0,0.0365]
[1758441652603,5.55829355,115900.0,115890.0,0.0365]
[1758441653104,5.55818355,115900.0,115890.0,0.0365]
[1758441653504,4.77926355,115900.0,115890.0,0.0365]
[1758441653698,5.55830355,115900.0,115890.0,0.0365]
[1758441654398,5.55668355,115900.0,115890.0,0.0365]
[1758441654699,4.77764355,115900.0,115890.0,0.0365]
[1758441654903,5.55664355,115900.0,115890.0,0.0365]
[1758441655201,5.55652355,115900.0,115890.0,0.0365]
[1758441655603,5.55632355,115900.0,115890.0,0.0365]
[1758441656005,5.55605355,115900.0,115890.0,0.0365]
[1758441658304,5.55594355,115900.0,115890.0,0.0365]
[1758441659107,5.55602355,115900.0,115890.0,0.0365]
[1758441659406,5.55456355,115900.0,115890.0,0.0365]
[1758441659802,5.55139355,115900.0,115890.0,0.0365]
[1758441660705,5.54992355,115900.0,115890.0,0.0365]
[1758441661307,5.54970355,115900.0,115890.0,0.0365]
[1758441662004,5.54369355,115900.0,115890.0,0.0365]
[1758441662507,5.54276355,115900.0,115890.0,0.0365]
[1758441663107,5.54132355,115900.0,115890.0,0.0365]
[1758441663604,5.49886355,115900.0,115890.0,0.0365]
[1758441664214,5.49774355,115900.0,115890.0,0.0365]
[1758441664406,5.49764355,115900.0,115890.0,0.0365]
[1758441664709,4.71856355,115900.0,115890.0,0.0365]
[1758441664911,5.49780355,115900.0,115890.0,0.0365]
[1758441665209,5.49760355,115900.0,115890.0,0.0365]
[1758441665710,5.49597355,115900.0,115890.0,0.0365]
[1758441666410,5.49581355,115900.0,115890.0,0.0365]
[1758441666913,5.49557355,115900.0,115890.0,0.0365]
[1758441667310,5.49547355,115900.0,115890.0,0.0365]
[1758441667813,4.71623355,115900.0,115890.0,0.0365]
[1758441668014,5.49539355,115900.0,115890.0,0.0365]
[1758441670313,5.49501355,115900.0,115890.0,0.0365]
[1758441671017,5.49479355,115900.0,115890.0,0.0365]
[1758441671615,5.49439355,115900.0,115890.0,0.0365]
[1758441672114,5.49429355,115900.0,115890.0,0.0365]
[1758441673217,5.49418355,115900.0,115890.0,0.0365]
[1758441673821,5.49351355,115900.0,115890.0,0.0365]
[1758441674825,5.47689355,115900.0,115890.0,0.0365]
[1758441675225,5.47611355,115900.0,115890.0,0.0365]
[1758441675526,5.11531355,115900.0,115890.0,0.0365]
[1758441675828,5.45885355,115900.0,115890.0,0.0365]
[1758441676524,5.45662355,115900.0,115890.0,0.0365]
[1758441677225,5.45650355,115900.0,115890.0,0.0365]
[1758441677725,5.45620355,115900.0,115890.0,0.0365]
[1758441678226,5.45420355,115900.0,115890.0,0.0365]
[1758441678427,5.45520355,115900.0,115890.0,0.0365]
[1758441679828,5.44649355,115900.0,115890.0,0.0365]
[1758441680029,5.44649355,115900.0,115890.0,0.0375]
[1758441680329,5.44549355,115900.0,115890.0,0.0375]
[1758441680932,5.44537355,115900.0,115890.0,0.0375]
[1758441681530,5.44524355,115900.0,115890.0,0.0375]
[1758441681832,5.43587355,115900.0,115890.0,0.0375]
[1758441682433,5.43345355,115900.0,115890.0,0.0375]
[1758441683036,5.43330355,115900.0,115890.0,0.0375]
[1758441683230,5.43123355,115900.0,115890.0,0.0375]
[1758441685135,4.65207355,115900.0,115890.0,0.0375]
[1758441685335,5.43095355,115900.0,115890.0,0.0375]
[1758441687837,5.42996355,115900.0,115890.0,0.0375]
[1758441688237,5.42034355,115900.0,115890.0,0.0375]
[1758441688537,5.42030355,115900.0,115890.0,0.0375]
[1758441688737,5.41986355,115900.0,115890.0,0.0375]
[1758441692440,5.41928355,115900.0,115890.0,0.0375]
[1758441692840,5.41918355,115900.0,115890.0,0.0375]
[1758441693840,4.64034355,115900.0,115890.0,0.0375]
[1758441694139,5.41910355,115900.0,115890.0,0.0375]
[1758441694638,5.41895355,115900.0,115890.0,0.0375]
[1758441694941,5.41844355,115900.0,115890.0,0.0375]
[1758441697140,5.41830355,115900.0,115890.0,0.0375]
[1758441697843,5.41817355,115900.0,115890.0,0.0375]
[1758441699143,5.41783355,115900.0,115890.0,0.0375]
[1758441699640,5.41554355,115900.0,115890.0,0.0375]
[1758441700343,5.41454355,115900.0,115890.0,0.0375]
[1758441700735,5.41454355,115900.0,115890.0,0.0365]
[1758441700935,5.41454355,115900.0,115890.0,0.0415]
[1758441701644,5.41349355,115900.0,115890.0,0.0415]
[1758441701840,5.41337355,115900.0,115890.0,0.0415]
[1758441702335,5.41327355,115900.0,115890.0,0.0415]
[1758441702946,5.41327355,115900.0,115890.0,0.02824]
[1758441703147,5.42252355,115900.0,115890.0,0.005]
[1758441703847,5.42252355,115900.0,115890.0,0.02807]
[1758441704049,5.42224355,115900.0,115890.0,0.02807]
[1758441704246,5.42025355,115900.0,115890.0,0.02807]
[1758441706951,5.41735355,115900.0,115890.0,0.02807]
[1758441707752,5.41596355,115900.0,115890.0,0.02807]
[1758441708351,5.41550355,115900.0,115890.0,0.02807]
[1758441709447,5.41348355,115900.0,115890.0,0.02807]
[1758441709650,5.41246355,115900.0,115890.0,0.02807]
[1758441710252,5.41246355,115900.0,115890.0,0.87717935]
[1758441710849,5.41246355,115900.0,115890.0,0.85410935]
[1758441711048,5.41234355,115900.0,115890.0,0.85410935]
[1758441711442,5.41205355,115900.0,115890.0,0.85410935]
[1758441712450,5.38034355,115900.0,115890.0,0.85410935]
[1758441713956,5.38034355,115900.0,115890.0,0.87717935]
[1758441714255,5.38018355,115900.0,115890.0,0.87717935]
[1758441714851,5.35970355,115900.0,115890.0,0.87717935]
[1758441715249,5.35921355,115900.0,115890.0,0.87717935]
[1758441715552,5.35910355,115900.0,115890.0,0.87717935]
[1758441715857,5.35864355,115900.0,115890.0,0.87717935]
[1758441716157,5.35755355,115900.0,115890.0,0.87717935]
[1758441716555,5.32149355,115900.0,115890.0,0.87717935]
[1758441718657,5.32149355,115900.0,115890.0,0.85410935]
[1758441721465,5.32149355,115900.0,115890.0,0.005]
[1758441721661,5.32149355,115900.0,115890.0,0.85410935]
[1758441733767,5.32149355,115900.0,115890.0,1.27870424]
[1758441733970,5.32149355,115900.0,115890.0,0.005]
[1758441733971,6.42062971,115900.0,115890.0,0.005]
[1758441734173,6.42062971,115900.0,115890.0,0.42956808]
[1758441735467,5.64198971,115900.0,115890.0,0.42956808]
[1758441735675,6.42070971,115900.0,115890.0,0.42956808]
[1758441738368,6.42070971,115900.0,115890.0,0.005]
[1758441738569,7.20607779,115900.0,115890.0,0.005]
[1758441738872,7.20607779,115900.0,115890.0,0.42956808]
[1758441739377,7.20607779,115900.0,115890.0,0.005]
[1758441739772,6.42735779,115900.0,115890.0,0.005]
[1758441740273,7.20603779,115900.0,115890.0,0.005]
[1758441740475,7.20603779,115900.0,115890.0,0.07575]
[1758441740769,7.20603779,115900.0,115890.0,0.50031808]
[1758441741371,7.20603779,115900.0,115890.0,0.07575]
[1758441741576,7.23258469,115900.0,115890.0,0.50031808]
[1758441742276,7.20603779,115900.0,115890.0,0.50031808]
[1758441744072,7.22611383,115900.0,115890.0,0.50031808]
[1758441746276,5.95240959,115900.0,115890.0,0.50031808]
[1758441746474,7.22611383,115900.0,115890.0,0.50031808]
[1758441748179,7.22615383,115900.0,115890.0,0.50031808]
[1758441749475,7.22615383,115900.0,115890.0,0.07575]
[1758441750379,7.22615383,115900.0,115890.0,0.0502856]
[1758441750569,5.95244959,115900.0,115890.0,0.0285986]
[1758441750776,0.1152783,115890.0,115880.0,0.0002]
[1758441750983,0.1143758,115880.0,115870.0,0.42476808]
[1758441751281,1.69854311,115880.0,115870.0,0.84913616]
[1758441752990,1.69854311,115880.0,115870.0,0.85813616]
[1758441753793,1.69854311,115880.0,115870.0,0.86113616]
[1758441760899,0.91970311,115880.0,115870.0,0.86113616]
[1758441761100,1.69846311,115880.0,115870.0,0.86113616]
[1758441762400,1.69846311,115880.0,115870.0,1.28570424]
[1758441762908,1.27389503,115880.0,115870.0,0.86113616]
[1758441763097,1.69846311,115880.0,115870.0,0.86113616]
[1758441765002,0.49513503,115880.0,115870.0,0.86113616]
[1758441765203,1.27389503,115880.0,115870.0,1.28570424]
[1758441765403,1.69846311,115880.0,115870.0,1.28570424]
[1758441766906,1.69846311,115880.0,115870.0,0.86113616]
[1758441767107,1.69846311,115880.0,115870.0,1.28570424]
[1758441770111,1.69846311,115880.0,115870.0,0.86113616]
[1758441770809,2.48383119,115880.0,115870.0,0.43656808]
[1758441771115,1.70507119,115880.0,115870.0,0.43656808]
[1758441771409,2.48431119,115880.0,115870.0,0.43656808]
[1758441771610,1.70507119,115880.0,115870.0,0.43656808]
[1758441771810,2.90887927,115880.0,115870.0,0.43656808]
[1758441772108,2.48431119,115880.0,115870.0,0.43656808]
[1758441772305,3.15887927,115880.0,115870.0,0.43656808]
[1758441772611,2.73431119,115880.0,115870.0,0.43656808]
[1758441775110,3.15887927,115880.0,115870.0,0.43656808]
[1758441777312,2.37963927,115880.0,115870.0,0.43656808]
[1758441777607,2.73423119,115880.0,115870.0,0.43656808]
[1758441779414,2.73423119,115880.0,115870.0,0.012]
[1758441779708,2.73423119,115880.0,115870.0,0.43656808]
[1758441780510,2.73419119,115880.0,115870.0,0.43656808]
[1758441780711,1.95507119,115880.0,115870.0,0.43656808]
[1758441780912,2.73419119,115880.0,115870.0,0.43656808]
[1758441782519,1.88505503,115880.0,115870.0,0.012]
[1758441782719,1.95507119,115880.0,115870.0,0.43656808]
[1758441783316,2.73415119,115880.0,115870.0,0.43656808]
[1758441783817,3.15871927,115880.0,115870.0,0.43656808]
[1758441785515,2.73415119,115880.0,115870.0,0.43656808]
[1758441785720,2.73411119,115880.0,115870.0,0.43656808]
[1758441786520,1.95507119,115880.0,115870.0,0.43656808]
[1758441786820,2.73411119,115880.0,115870.0,0.43656808]
[1758441791717,1.95507119,115880.0,115870.0,0.43656808]
[1758441791922,2.73403119,115880.0,115870.0,0.43656808]
[1758441792224,2.73403119,115880.0,115870.0,0.012]
[1758441792423,3.15859927,115880.0,115870.0,0.012]
[1758441792621,3.15859927,115880.0,115870.0,0.43656808]
[1758441793019,2.37963927,115880.0,115870.0,0.43656808]
[1758441793225,3.15863927,115880.0,115870.0,0.43656808]
[1758441793923,2.45138169,115880.0,115870.0,0.012]
[1758441794117,2.45138169,115880.0,115870.0,0.29522333]
[1758441794318,2.45138169,115880.0,115870.0,0.012]
[1758441794525,2.45138169,115880.0,115870.0,0.29522333]
[1758441795025,2.73460502,115880.0,115870.0,0.012]
[1758441795222,1.95560502,115880.0,115870.0,0.29522333]
[1758441795426,2.73460502,115880.0,115870.0,0.29522333]
[1758441797825,2.73460502,115880.0,115870.0,0.012]
[1758441798124,2.73460502,115880.0,115870.0,0.29522333]
[1758441799532,2.76128336,115880.0,115870.0,0.29522333]
[1758441799725,2.73460502,115880.0,115870.0,0.29522333]
[1758441800326,2.76129791,115880.0,115870.0,0.29522333]
[1758441801125,2.76125791,115880.0,115870.0,0.29522333]
[1758441801328,1.98229791,115880.0,115870.0,0.29522333]
[1758441801921,2.47803458,115880.0,115870.0,0.29522333]
[1758441802928,1.69907458,115880.0,115870.0,0.29522333]
[1758441803324,2.47799458,115880.0,115870.0,0.29522333]
[1758441807929,1.91154792,115880.0,115870.0,0.29522333]
[1758441808124,2.47795458,115880.0,115870.0,0.29522333]
[1758441808731,1.69907458,115880.0,115870.0,0.29522333]
[1758441809031,2.47795458,115880.0,115870.0,0.29522333]
[1758441810125,2.45126169,115880.0,115870.0,0.29522333]
[1758441814929,1.67238169,115880.0,115870.0,0.29522333]
[1758441815131,2.45126169,115880.0,115870.0,0.29522333]
[1758441819338,2.20126169,115880.0,115870.0,0.29522333]
[1758441826345,1.47966169,115880.0,115870.0,0.29522333]
[1758441826551,2.20126169,115880.0,115870.0,0.29522333]
[1758441833451,1.47966169,115880.0,115870.0,0.29522333]
[1758441833654,2.20126169,115880.0,115870.0,0.29522333]
[1758441835454,1.47966169,115880.0,115870.0,0.29522333]
[1758441835660,2.20126169,115880.0,115870.0,0.29522333]
[1758441836760,2.22782996,115880.0,115870.0,0.29522333]
[1758441837864,2.22782996,115880.0,115870.0,0.012]
[1758441838055,2.22782996,115880.0,115870.0,0.29522333]
[1758441838862,2.22782996,115880.0,115870.0,0.012]
[1758441839058,2.22782996,115880.0,115870.0,0.29522333]
[1758441840259,2.22766714,115880.0,115870.0,0.29522333]
[1758441840561,2.20126169,115880.0,115870.0,0.29522333]
[1758441841561,1.63481503,115880.0,115870.0,0.29522333]
[1758441841762,0.85593503,115880.0,115870.0,0.29522333]
[1758441842062,2.20126169,115880.0,115870.0,0.29522333]
[1758441842261,2.22787837,115880.0,115870.0,0.29522333]
[1758441842462,1.44899837,115880.0,115870.0,0.36309333]
[1758441842664,1.66143171,115880.0,115870.0,0.36309333]
[1758441842967,2.22787837,115880.0,115870.0,0.36309333]
[1758441843563,1.44899837,115880.0,115870.0,0.36309333]
[1758441843964,1.44899837,115880.0,115870.0,0.07987]
[1758441843965,2.22787837,115880.0,115870.0,0.07987]
[1758441844167,2.22787837,115880.0,115870.0,0.36309333]
[1758441852870,1.50627837,115880.0,115870.0,0.36309333]
[1758441853170,2.22787837,115880.0,115870.0,0.36309333]
[1758441855764,2.51106869,115880.0,115870.0,0.50468849]
[1758441857072,2.51106869,115880.0,115870.0,0.07987]
[1758441857272,2.51106869,115880.0,115870.0,0.50468849]
[1758441857570,2.48445201,115880.0,115870.0,0.50468849]
[1758441858373,2.51102491,115880.0,115870.0,0.50468849]
[1758441860876,2.48445201,115880.0,115870.0,0.50468849]
[1758441861173,2.48445201,115880.0,115870.0,0.07987]
[1758441861373,2.48445201,115880.0,115870.0,0.50468849]
[1758441867877,2.51104418,115880.0,115870.0,0.50468849]
[1758441869279,7.17034418,115880.0,115870.0,0.50468849]
[1758441870879,6.3207072,115880.0,115870.0,0.50468849]
[1758441871079,7.17034418,115880.0,115870.0,0.50468849]
[1758441871281,7.17068535,115880.0,115870.0,0.50468849]
[1758441874483,6.44908535,115880.0,115870.0,0.50468849]
[1758441874683,7.17068535,115880.0,115870.0,0.50468849]
[1758441876085,7.17068535,115880.0,115870.0,0.07987]
[1758441876276,7.59550384,115880.0,115870.0,0.07987]
[1758441877786,7.59750384,115880.0,115870.0,0.07087]
[1758441878087,7.59850384,115880.0,115870.0,0.06787]
[1758441881689,6.32404837,115880.0,115870.0,0.06787]
[1758441881989,7.59850384,115880.0,115870.0,0.06787]
[1758441886093,0.96402008,115870.0,115860.0,0.42501849]
[1758441886389,1.39297639,115870.0,115860.0,0.42481849]
[1758441887194,1.81779488,115870.0,115860.0,0.42481849]
[1758441887691,1.39297639,115870.0,115860.0,0.42481849]
[1758441888092,1.81779488,115870.0,115860.0,0.42681849]
[1758441888293,1.81779488,115870.0,115860.0,0.002]
[1758441888494,1.81779488,115870.0,115860.0,0.42681849]
[1758441889288,1.81779488,115870.0,115860.0,0.002]
[1758441889495,1.84436247,115870.0,115860.0,0.42681849]
[1758441891297,1.81779488,115870.0,115860.0,0.42681849]
[1758441893991,1.81779488,115870.0,115860.0,0.002]
[1758441894292,1.8443506,115870.0,115860.0,0.42681849]
[1758441894792,1.41953211,115870.0,115860.0,0.42681849]
[1758441895496,1.8443506,115870.0,115860.0,0.42681849]
[1758441897198,2.19837211,115870.0,115860.0,0.42681849]
[1758441898197,2.19837211,115870.0,115860.0,0.002]
[1758441898496,2.19837211,115870.0,115860.0,0.42681849]
[1758441900099,2.19836364,115870.0,115860.0,0.42681849]
[1758441903303,2.55916364,115870.0,115860.0,0.42681849]
[1758441904600,2.53261639,115870.0,115860.0,0.42681849]
[1758441906702,2.53261639,115870.0,115860.0,0.85163698]
[1758441907401,2.53261639,115870.0,115860.0,0.42681849]
[1758441908708,2.53261639,115870.0,115860.0,0.85163698]
[1758441908901,1.81101639,115870.0,115860.0,0.85163698]
[1758441909107,2.53261639,115870.0,115860.0,0.85163698]
[1758441915013,2.53261639,115870.0,115860.0,0.42681849]
[1758441915709,1.96624023,115870.0,115860.0,0.30627082]
[1758441915909,2.24950105,115870.0,115860.0,0.30627082]
[1758441916313,2.27606722,115870.0,115860.0,0.30627082]
[1758441920716,2.27606722,115870.0,115860.0,0.58953164]
[1758441921112,2.27606722,115870.0,115860.0,0.56852164]
[1758441922810,2.27606722,115870.0,115860.0,0.28526082]
[1758441925923,1.49722722,115870.0,115860.0,0.28526082]
[1758441926220,2.27602722,115870.0,115860.0,0.30831082]
[1758441927021,2.27602722,115870.0,115860.0,0.59157164]
[1758441928222,1.9927664,115870.0,115860.0,0.59157164]
[1758441930724,2.27602722,115870.0,115860.0,0.59157164]
[1758441931325,2.27602722,115870.0,115860.0,0.30831082]
[1758441932727,1.9927664,115870.0,115860.0,0.30831082]
[1758441933728,2.27602722,115870.0,115860.0,0.30831082]
[1758441934529,1.55442722,115870.0,115860.0,0.30831082]
[1758441934726,2.27602722,115870.0,115860.0,0.30831082]
[1758441936626,1.70950558,115870.0,115860.0,0.30831082]
[1758441936831,2.27602722,115870.0,115860.0,0.30831082]
[1758441938433,1.70950558,115870.0,115860.0,0.30831082]
[1758441938734,2.27602722,115870.0,115860.0,0.30831082]
[1758441938932,6.93492722,115870.0,115860.0,0.30831082]
[1758441940735,6.6516664,115870.0,115860.0,0.59157164]
[1758441941130,6.6516664,115870.0,115860.0,0.02505]
[1758441941326,6.6516664,115870.0,115860.0,0.59157164]
[1758441944437,6.6516664,115870.0,115860.0,0.02505]
[1758441944633,6.6516664,115870.0,115860.0,0.59157164]
[1758441946040,6.6516664,115870.0,115860.0,0.02505]
[1758441946238,6.6516664,115870.0,115860.0,0.59157164]
[1758441948938,6.93492722,115870.0,115860.0,0.59157164]
[1758441950441,6.21332722,115870.0,115860.0,0.59157164]
[1758441950643,6.93492722,115870.0,115860.0,0.59157164]
[1758441951638,6.57412722,115870.0,115860.0,0.59157164]
[1758441951840,6.93492722,115870.0,115860.0,0.59157164]
[1758441953639,6.21332722,115870.0,115860.0,0.59157164]
[1758441953945,6.93492722,115870.0,115860.0,0.59157164]
[1758441958950,6.93492722,115870.0,115860.0,0.002]
[1758441959137,6.93492722,115870.0,115860.0,0.56852164]
[1758441964750,6.93492722,115870.0,115860.0,0.28526082]
[1758441965551,6.93492722,115870.0,115860.0,0.30774082]
[1758441972060,6.93492722,115870.0,115860.0,0.002]
[1758441972258,6.93492722,115870.0,115860.0,0.30662082]
[1758441972854,6.93492722,115870.0,115860.0,0.58988164]
[1758441977758,7.21816802,115870.0,115860.0,0.87312244]
[1758441988365,6.7932868,115870.0,115860.0,0.87312244]
[1758441988664,7.21816802,115870.0,115860.0,0.87312244]
[1758441992971,6.7932868,115870.0,115860.0,0.87312244]
[1758441998772,7.21816802,115870.0,115860.0,0.87312244]
[1758441999373,6.36840558,115870.0,115860.0,0.87312244]
[1758441999574,7.21816802,115870.0,115860.0,0.87312244]
[1758442008185,7.19160185,115870.0,115860.0,0.02336]
[1758442008379,6.76672063,115870.0,115860.0,0.02336]
[1758442008606,7.21804208,115870.0,115860.0,0.85176244]
[1758442009486,7.19160185,115870.0,115860.0,0.85176244]
[1758442009981,7.2180417,115870.0,115860.0,0.85176244]
[1758442015886,7.2180417,115870.0,115860.0,0.42688122]
[1758442016391,7.19160185,115870.0,115860.0,0.42688122]
[1758442017296,7.19260185,115870.0,115860.0,0.42688122]
[1758442017698,7.19360185,115870.0,115860.0,0.42488122]
[1758442019402,7.22022942,115870.0,115860.0,0.42488122]
[1758442030504,0.1083505,115860.0,115850.0,0.88591244]
[1758442030704,0.90360172,115860.0,115850.0,0.88571244]
[1758442030909,0.90360172,115860.0,115850.0,0.87294244]
[1758442031903,0.90360172,115860.0,115850.0,0.87594244]
[1758442037813,0.76200289,115860.0,115850.0,0.59274478]
[1758442039007,0.4787205,115860.0,115850.0,0.59274478]
[1758442039210,0.76200289,115860.0,115850.0,0.59274478]
[1758442039604,0.76200289,115860.0,115850.0,0.87602717]
[1758442039915,0.75253289,115860.0,115850.0,0.88893717]
[1758442040310,0.75253289,115860.0,115850.0,0.60565478]
[1758442047822,1.2479705,115860.0,115850.0,0.60565478]
[1758442048208,1.53125289,115860.0,115850.0,0.60565478]
[1758442048916,1.53125289,115860.0,115850.0,0.88893717]
[1758442050518,0.4692505,115860.0,115850.0,0.88893717]
[1758442050717,1.53125289,115860.0,115850.0,0.88893717]
[1758442053519,0.75253289,115860.0,115850.0,0.88893717]
[1758442053818,1.53125289,115860.0,115850.0,0.88893717]
[1758442068429,1.53125289,115860.0,115850.0,0.60565478]
[1758442073032,1.2479705,115860.0,115850.0,0.60565478]
[1758442073235,1.53125289,115860.0,115850.0,0.60565478]
[1758442074326,1.17045289,115860.0,115850.0,0.60565478]
[1758442074524,1.53125289,115860.0,115850.0,0.60565478]
[1758442081325,1.53125289,115860.0,115850.0,0.62318017]
[1758442082633,1.53125289,115860.0,115850.0,0.05661539]
[1758442082824,1.53125289,115860.0,115850.0,0.62318017]
[1758442085538,1.53125289,115860.0,115850.0,0.05661539]
[1758442085734,1.53125289,115860.0,115850.0,0.62318017]
[1758442088840,1.53125289,115860.0,115850.0,0.05661539]
[1758442089038,2.10728767,115860.0,115850.0,0.02052539]
[1758442089337,1.57856767,115860.0,115850.0,0.02052539]
[1758442089538,2.38405369,115860.0,115850.0,0.02052539]
[1758442091231,2.38405369,115860.0,115850.0,0.003]
[1758442091737,0.0862653,115840.0,115830.0,0.31399924]
[1758442091936,2.17456008,115840.0,115830.0,0.33697924]
[1758442092240,2.18029008,115840.0,115830.0,0.31924239]
[1758442092841,2.18029008,115840.0,115830.0,0.30926239]
[1758442093137,2.18029008,115840.0,115830.0,0.31826239]
[1758442093929,2.19827701,115840.0,115830.0,0.31826239]
[1758442097744,2.48195035,115840.0,115830.0,0.03498]
[1758442097943,2.48195035,115840.0,115830.0,0.46009906]
[1758442103147,1.63171223,115840.0,115830.0,0.46009906]
[1758442103349,2.48195035,115840.0,115830.0,0.46009906]
[1758442107552,2.90706941,115840.0,115830.0,0.43711906]
[1758442107850,2.48195035,115840.0,115830.0,0.43711906]
[1758442109152,2.48195035,115840.0,115830.0,0.45948906]
[1758442110857,2.48195035,115840.0,115830.0,0.43711906]
[1758442111054,2.48205035,115840.0,115830.0,0.43711906]
[1758442111759,2.48205035,115840.0,115830.0,0.45948906]
[1758442112753,2.48205035,115840.0,115830.0,0.43711906]
[1758442113157,2.48205035,115840.0,115830.0,0.45948906]
[1758442114659,2.48205035,115840.0,115830.0,0.03437]
[1758442114957,2.48205035,115840.0,115830.0,0.45948906]
[1758442115163,2.84054042,115800.0,115790.0,1.95040666]
[1758442115362,2.84054042,115800.0,115790.0,1.96890759]
[1758442116156,2.92683552,115800.0,115790.0,1.96890759]
[1758442116359,2.92683552,115800.0,115790.0,2.80119061]
[1758442117460,2.92783552,115800.0,115790.0,2.81919061]
[1758442117958,2.92883552,115800.0,115790.0,2.82719061]
[1758442119761,2.92883552,115800.0,115790.0,2.55999061]
[1758442125658,2.92883552,115800.0,115790.0,2.55902159]
[1758442157790,2.92883552,115800.0,115790.0,2.13409418]
[1758442157990,2.92893552,115800.0,115790.0,2.13409418]
[1758442158890,2.92893552,115800.0,115790.0,1.77329418]
[1758442162689,2.94509379,115800.0,115790.0,1.77329418]
[1758442162992,2.95215552,115800.0,115790.0,1.01604418]
[1758442163295,3.31295552,115800.0,115790.0,1.79492418]
[1758442165103,3.32772933,115800.0,115790.0,1.79492418]
[1758442165301,3.31295552,115800.0,115790.0,1.79492418]
[1758442169710,3.3274986,115800.0,115790.0,1.79492418]
[1758442171614,3.62450519,115800.0,115790.0,1.51144759]
[1758442172115,3.62450519,115800.0,115790.0,1.49757759]
[1758442173414,3.90798178,115800.0,115790.0,0.4352213]
[1758442173621,4.15798178,115800.0,115790.0,0.3489185]
[1758442174219,4.17845026,115800.0,115790.0,0.3489185]
[1758442176015,4.17845026,115800.0,115790.0,0.3309185]
[1758442176220,4.17745026,115800.0,115790.0,0.3449185]
[1758442177023,4.17745026,115800.0,115790.0,0.06144191]
[1758442177317,4.17745026,115800.0,115790.0,0.3449185]
[1758442177521,4.17745026,115800.0,115790.0,0.06144191]
[1758442179320,3.92745026,115800.0,115790.0,0.06144191]
[1758442179723,3.92745026,115800.0,115790.0,0.3449185]
[1758442185725,3.92745026,115800.0,115790.0,0.06144191]
[1758442187628,3.92745026,115800.0,115790.0,0.3449185]
[1758442188127,4.46092685,115800.0,115790.0,0.03953191]
[1758442191330,4.10012685,115800.0,115790.0,0.03953191]
[1758442191518,4.82172685,115800.0,115790.0,0.03953191]
[1758442193226,4.82172685,115800.0,115790.0,0.022]
[1758442193527,4.82172685,115800.0,115790.0,0.30547659]
[1758442193528,5.60068685,115800.0,115790.0,0.30547659]
[1758442193718,5.60068685,115800.0,115790.0,0.022]
[1758442195131,4.82172685,115800.0,115790.0,0.022]
[1758442195431,5.60072685,115800.0,115790.0,0.022]
[1758442195931,4.82172685,115800.0,115790.0,0.022]
[1758442196328,5.60072685,115800.0,115790.0,0.022]
[1758442196627,4.82172685,115800.0,115790.0,0.04301]
[1758442197226,5.60072685,115800.0,115790.0,0.04301]
[1758442197426,4.82172685,115800.0,115790.0,0.04301]
[1758442200237,5.60072685,115800.0,115790.0,0.04301]
[1758442203134,5.60072685,115800.0,115790.0,0.32648659]
[1758442206243,4.82172685,115800.0,115790.0,0.32648659]
[1758442206435,5.60072685,115800.0,115790.0,0.32648659]
[1758442207038,4.82172685,115800.0,115790.0,0.32648659]
[1758442207236,5.60068685,115800.0,115790.0,0.32648659]
[1758442211239,3.72129708,115800.0,115790.0,0.60996318]
[1758442211445,4.78373367,115800.0,115790.0,0.60996318]
[1758442211644,4.78373367,115800.0,115790.0,0.62229318]
[1758442216844,4.78373367,115800.0,115790.0,0.60996318]
[1758442217948,4.92555845,115800.0,115790.0,1.31891411]
[1758442220345,4.92555845,115800.0,115790.0,0.04301]
[1758442220551,4.92555845,115800.0,115790.0,1.31891411]
[1758442221050,4.50025708,115800.0,115790.0,1.31891411]
[1758442221251,4.92555845,115800.0,115790.0,1.31891411]
[1758442221652,4.92555845,115800.0,115790.0,0.04301]
[1758442221853,4.92555845,115800.0,115790.0,1.31891411]
[1758442225559,4.92555845,115800.0,115790.0,0.89361274]
[1758442226658,4.92555845,115800.0,115790.0,0.88961274]
[1758442226858,4.92455845,115800.0,115790.0,0.87861274]
[1758442230060,4.49925708,115800.0,115790.0,0.87861274]
[1758442230367,4.92455845,115800.0,115790.0,0.87861274]
[1758442230967,4.49925708,115800.0,115790.0,0.87861274]
[1758442231161,4.92455845,115800.0,115790.0,0.87861274]
[1758442236573,4.92455845,115800.0,115790.0,0.02801]
[1758442236766,4.92455845,115800.0,115790.0,0.007]
[1758442236767,4.49925708,115800.0,115790.0,0.007]
[1758442236971,5.34985982,115800.0,115790.0,0.43230137]
[1758442237272,4.49925708,115800.0,115790.0,0.87965274]
[1758442237469,5.34985982,115800.0,115790.0,0.45435137]
[1758442237771,5.34985982,115800.0,115790.0,0.87965274]
[1758442239570,4.92455845,115800.0,115790.0,0.87965274]
[1758442240072,4.49925708,115800.0,115790.0,0.87965274]
[1758442240270,4.92455845,115800.0,115790.0,0.87965274]
[1758442245775,5.34985982,115800.0,115790.0,0.87965274]
[1758442247978,4.49925708,115800.0,115790.0,0.87965274]
[1758442248180,5.34985982,115800.0,115790.0,0.02905]
[1758442248376,5.34985982,115800.0,115790.0,0.87965274]
[1758442251883,4.62825982,115800.0,115790.0,0.87965274]
[1758442252182,5.34985982,115800.0,115790.0,0.87965274]
[1758442254884,4.49925708,115800.0,115790.0,0.87965274]
[1758442255087,4.92455845,115800.0,115790.0,0.87965274]
[1758442256385,4.14559845,115800.0,115790.0,0.87965274]
[1758442256586,4.92631845,115800.0,115790.0,0.87965274]
[1758442258188,4.50101708,115800.0,115790.0,0.87965274]
[1758442258387,4.92631845,115800.0,115790.0,0.87965274]
[1758442258882,3.72029708,115800.0,115790.0,0.87965274]
[1758442259089,4.92647845,115800.0,115790.0,0.87965274]
[1758442261085,4.92647845,115800.0,115790.0,1.30495411]
[1758442261279,4.50117708,115800.0,115790.0,1.30495411]
[1758442261485,4.92647845,115800.0,115790.0,1.30495411]
[1758442261891,4.20487845,115800.0,115790.0,1.30495411]
[1758442262091,4.56567845,115800.0,115790.0,1.30495411]
[1758442263595,4.14037708,115800.0,115790.0,1.30495411]
[1758442263892,4.56567845,115800.0,115790.0,1.30495411]
[1758442266491,4.56567845,115800.0,115790.0,0.87965274]
[1758442267095,4.99097982,115800.0,115790.0,0.87965274]
[1758442269898,4.56567845,115800.0,115790.0,0.87965274]